Workbook

Sheet 심의안건
A1: 2019년도 제1회 예천군 보조금심의위원회 대상자선정 심의조서
K2: (단위 : 천원)
A3: 부서명 | B3: 보 조 사 업 자 | C3: 보 조 사 업 명 | D3: 과목명 | E3: 사 업 내 용 | F3: 2018년 지원액 | G3: 계 | H3: 보조금 | I3: 자부담 | J3: 1차 (해당부서) | K3: 2차 (예산부서) | L3: 3차 (위원회)
A4: 계 | C4: =SUBTOTAL(103,C6:C42)&"건" -> 32건 | F4: =SUBTOTAL(9,F6:F42) -> 1,217,928 | G4: =SUBTOTAL(9,G6:G42) -> 3,121,954 | H4: 1,921,032 | I4: 1,200,922 | J4: 1,921,032 | K4: 1,921,032 | L4: =SUBTOTAL(9,L20:L982) -> 0
A5: 주민복지실 소계 | C5: =SUBTOTAL(103,C6:C11)&"건" -> 6건 | F5: =SUBTOTAL(9,F6:F11) -> 598,308 | G5: =SUBTOTAL(9,G6:G11) -> 425,178 | H5: 422,178 | I5: 3,000 | J5: 422,178 | K5: 422,178
A6: 주민복지실 | B6: 예천군 신규등록노인회 | C6: 경로당 신축 | D6: 민간자본사업보조 (자체재원) | E6: 경로당 신축 : 100,000(1개소) | F6: 60,000 | G6: =SUM(H6:I6) -> 100,000 | H6: 100,000 | J6: 100,000 | K6: 100,000
A7: 주민복지실 | B7: 예천군 등록 경로당 노인회장 | C7: 경로당 보수 | D7: 민간자본사업보조 (자체재원) | E7: 경로당 보수, 리모델링 ,지붕덧씌우기,화장실신축, 주방확장, 싱크대교체, 마루바닥보수, 창틀교체, 비가림시설, 계단보수등 | F7: 500,000 | G7: 250,000 | H7: 250,000 | J7: 250,000 | K7: 250,000
A8: 주민복지실 | B8: 국제로타리3630지구예천단샘로타리클럽 | C8: 2019 어린이날 기념식 및 청소년대축제 | D8: 사회복지사업보조 | E8: 어린이날 기념식 및 모범청소년 표창, 체험부스 운영 등: 28,000 | F8: 25,000 | G8: 28,000 | H8: 25,000 | I8: 3,000 | J8: 25,000 | K8: 25,000
A9: 주민복지실 | B9: 참길지역아동센터 | C9: 지역아동센터 특수목적형 프로그램 지원 | D9: 사회복지사업보조 | E9: 인건비 : 6,600 교구, 교재료 : 708 | F9: 7,308 | G9: 7,308 | H9: 7,308 | J9: 7,308 | K9: 7,308
A10: 주민복지실 | B10: 예천지역아동센터 외 1개소 (대상자 내역 별지) | C10: 지역아동센터 환경개선 | D10: 사회복지사업보조 | E10: 지역아동센터 환경개선비 (방충망, 조명교체, 주방 수리 등) : 34,870 | F10: 1,000 | G10: 34,870 | H10: =7990+26880 -> 34,870 | J10: =7990+26880 -> 34,870 | K10: =7990+26880 -> 34,870
A11: 주민복지실 | B11: 예천지역아동센터 | C11: 지역아동센터 특화프로그램 | D11: 사회복지사업보조 | E11: 특화프로그램 운영(악기 학습-바이올린): 5,000 | F11: 5,000 | G11: 5,000 | H11: 5,000 | J11: 5,000 | K11: 5,000
A12: 새마을경제과 소계 | C12: =SUBTOTAL(103,C13)&"건" -> 1건 | F12: =SUBTOTAL(9,F13) -> 0 | G12: =SUBTOTAL(9,G13) -> 5,628 | H12: 4,020 | I12: 1,608 | J12: 4,020 | K12: 4,020
A13: 새마을경제과 | B13: 예천읍 밤나무골길 33 동신그린타운 강성목 외 3명 (대상자 내역 별지) | C13: 미니태양광 보급지원사업 | D13: 민간자본사업보조 | E13: 1,407천원 * 1식 * 4명 | G13: =SUM(H13:I13) -> 5,628 | H13: 4,020 | I13: 1,608 | J13: 4,020 | K13: 4,020
A14: 종합민원과 소계 | C14: =SUBTOTAL(103,C15:C19)&"건" -> 5건 | F14: =SUBTOTAL(9,F15:F19) -> 45,000 | G14: =SUBTOTAL(9,G15:G19) -> 120,000 | H14: 110,000 | I14: 10,000 | J14: 110,000 | K14: 110,000
A15: 종합민원과 | B15: (사)한국외식업중앙회경상북도지회예천군지부 (대표자 : 장인동) | C15: 위생업소 현장방문 친절교육 | D15: 민간경상사업보조 | E15: 친절서비스교육 : 7,000 경영진단비 : 3,000 교재및프로그램개발 : 4,000 기타경비 : 1,000 | F15: 15,000 | G15: =SUM(H15:I15) -> 15,000 | H15: 15,000 | J15: 15,000 | K15: 15,000
A16: 종합민원과 | B16: (사)한국외식업중앙회경상북도지회예천군지부 (대표자 : 장인동) | C16: 식중독예방 및 음식문화개선 사업 | D16: 민간경상사업보조 | E16: 식중독예방 홍보 : 5,000 앞치마.위생모구입 : 5,000 모범업소 좋은식단 전시 : 10,000 | F16: 20,000 | G16: 20,000 | H16: 20,000 | J16: 20,000 | K16: 20,000
A17: 종합민원과 | B17: (사)한국외식업중앙회경상북도지회예천군지부 (대표자 : 장인동) | C17: 대표음식 메뉴개발 | D17: 민간경상사업보조 | E17: 메뉴개발 컨설팅, 인건비 : 17,000 식재료비 : 6,000 벤치마킹 : 1,500 식기구매 : 2,000 메뉴판 등 제작 : 5,000 레시피, 보고서 등 : 1,000 기타 출장비 등 : 7,500 | G17: 40,000 | H17: 30,000 | I17: 10,000 | J17: 30,000 | K17: 30,000
A18: 종합민원과 | B18: (사)한국외식업중앙회경상북도지회예천군지부 (대표자 : 장인동) | C18: 외식업소 영업주 선진외식 문화체험 | D18: 민간경상사업보조 | E18: 차량임차비 : 4.000 숙박비 : 2,000 식비 및 체험비 : 3,000 기타경비 : 1,000 | F18: 10,000 | G18: 10,000 | H18: 10,000 | J18: 10,000 | K18: 10,000
A19: 종합민원과 | B19: (사)한국외식업중앙회경상북도지회예천군지부 (대표자 : 장인동) | C19: 좋은식단 추진 및 식품위생업소 개선 사업 | D19: 민간경상사업보조 | E19: 냅킨케이스 제작 : 35,000 - 5,000 * 700 * 10=35,000,000 | G19: 35,000 | H19: 35,000 | J19: 35,000 | K19: 35,000
A20: 문화관광과 소계 | C20: =SUBTOTAL(103,C21)&"건" -> 1건 | F20: =SUBTOTAL(9,F21) -> 15,000 | G20: =SUBTOTAL(9,G21) -> 25,000 | H20: 25,000 | I20: 0 | J20: 25,000 | K20: 25,000
A21: 문화관광과 | B21: (사)한국예총예천지회 | C21: 군청 신청사 갤러리 전시지원 | D21: 민간경상사업보조 | E21: 전시지원 : 13,000 작품운송 설치,철거 : 1,500 수선 및 사무용품 : 1,500 전시기획 : 9,000 | F21: 15,000 | G21: 25,000 | H21: 25,000 | J21: 25,000 | K21: 25,000
A22: 농정과 소계 | C22: =SUBTOTAL(103,C23:C33)&"건" -> 11건 | F22: =SUBTOTAL(9,F23:F33) -> 408,000 | G22: =SUBTOTAL(9,G23:G33) -> 1,790,348 | H22: 967,674 | I22: 822,674 | J22: 967,674 | K22: 967,674 | L22: =SUBTOTAL(9,L23:L33) -> 0
A23: 농정과 | B23: 에천군 예천읍 대삼2길 60-4 천미연 외 12명 (대상자 내역 별지) | C23: 농산물 유통효율화지원 (농용컨테이너 상자운반기) | D23: 민간자본사업보조 | E23: 3,000천원 * 13대 * 50% | G23: 39,000 | H23: 19,500 | I23: 19,500 | J23: 19,500 | K23: 19,500
A24: 농정과 | B24: 농협경제지주 예천군 연합사업단 | C24: 농산물 출하농가 물류비 지원 | D24: 민간자본사업보조 | E24: 30천원 * 5,000톤 * 50% | G24: =SUM(H24:I24) -> 150,000 | H24: 75,000 | I24: 75,000 | J24: 75,000 | K24: 75,000
A25: 농정과 | B25: 농협경제지주 예천군 연합사업단 | C25: 농산물 출하농가 선별비 지원 | D25: 민간자본사업보조 | E25: 60천원 * 5,000톤 * 50% | G25: 300,000 | H25: 150,000 | I25: 150,000 | J25: 150,000 | K25: 150,000
A26: 농정과 | B26: 농협경제지주 예천군 연합사업단 | C26: 농산물 출하농가 포장재비 지원 | D26: 민간자본사업보조 | E26: 1.2천원 * 350,000매 * 50% | G26: 420,000 | H26: 210,000 | I26: 210,000 | J26: 210,000 | K26: 210,000
A27: 농정과 | B27: 경북매일신문 대표 최윤채 | C27: 농산물 해외수출 홍보사업 지원 | D27: 민간경상사업보조 | E27: 25,000천원 * 1회 | F27: 25,000 | G27: 28,000 | H27: 25,000 | I27: 3,000 | J27: 25,000 | K27: 25,000
A28: 농정과 | B28: 예천읍 왕신길 281 권오문 외 495명 (대상자 내역 별지) | C28: 원예특작분야 토양개량제 지원사업 | D28: 민간자본사업보조 | E28: 368,348천원 * 1식 * 50% | F28: 195,000 | G28: 368,348 | H28: =G28/2 -> 184,174 | I28: =G28-H28 -> 184,174 | J28: 184,174 | K28: 184,174
A29: 농정과 | B29: 영남엽연초협동조합 | C29: 엽연초재배농가 기자재 지원사업 | D29: 민간자본사업보조 | E29: 120,000천원 * 1식 * 50% | F29: 60,000 | G29: 120,000 | H29: 60,000 | I29: 60,000 | J29: 60,000 | K29: 60,000
A30: 농정과 | B30: 예천읍 동읍내길 6-3 김명상 외 99명 (대상자 내역 별지) | C30: 과수생력화기자재지원(과수전동가위) | D30: 민간자본사업보조 (자체재원) | E30: 1,600천원 * 100대 * 50% | F30: =24000+104000 -> 128,000 | G30: =1600*100 -> 160,000 | H30: =+G30/2 -> 80,000 | I30: =+H30 -> 80,000 | J30: =+H30 -> 80,000 | K30: =+I30 -> 80,000
A31: 농정과 | B31: 예천읍 양궁로 60-20, 코아루 103동 1004호 윤희문외 30명(대상자 내역 별지) | C31: 귀농인 영농기반 지원사업 | D31: 민간자본사업보조 | E31: 5,000,000원 * 30농가 * 80% | G31: =SUM(H31:I31) -> 150,000 | H31: 120,000 | I31: 30,000 | J31: 120,000 | K31: 120,000
A32: 농정과 | B32: 예천읍 남본1길 12 신귀순 외 4명 (대상자 내역 별지) | C32: 귀농인 빈집수리비 지원사업 | D32: 민간경상사업보조 | E32: 5,000,000원 * 5농가 * 80% | G32: 25,000 | H32: 20,000 | I32: 5,000 | J32: 20,000 | K32: 20,000
A33: 농정과 | B33: 예천읍 충효로 835-14 심규석 외 5명 (대상자 내역 별지) | C33: 귀농정착지원사업 | D33: 민간자본사업보조 | E33: 5,000,000원 * 6농가 * 80% | G33: 30,000 | H33: 24,000 | I33: 6,000 | J33: 24,000 | K33: 24,000
A34: 산림축산과 소계 | C34: =SUBTOTAL(103,C35:C42)&"건" -> 8건 | F34: =SUBTOTAL(9,F35:F42) -> 151,620 | G34: =SUBTOTAL(9,G35:G42) -> 755,800 | H34: 392,160 | I34: 363,640 | J34: 392,160 | K34: 392,160
A35: 산림축산과 | B35: 예천읍 방나무골길 87-124 외 13명 (대상자 내역 별지) | C35: 단기 임산물 소득지원사업 | D35: 민간자본사업보조 | E35: 298,200천원 * 1식 *50% | F35: 0 | G35: =SUM(H35:I35) -> 298,200 | H35: 149,100 | I35: 149,100 | J35: 149,100 | K35: 149,100
A36: 산림축산과 | B36: 예천읍 시장로 145 예천한우협회 영농조합법인 | C36: 한우 번식능력 개선제 지원 | D36: 민간자본사업보조 | E36: 30천원 * 4,000포 * 50% | F36: 37,500 | G36: 120,000 | H36: 60,000 | I36: 60,000 | J36: 60,000 | K36: 60,000
A37: 산림축산과 | B37: 풍양면 삼강로 363 노영한 | C37: IOT기반 축우관리시스템지원 | D37: 민간자본사업보조 | E37: 15,000천원 * 1개소 * 60% | G37: 15,000 | H37: 9,000 | I37: 6,000 | J37: 9,000 | K37: 9,000
A38: 산림축산과 | B38: 예천읍 충효로 376-12 김경동 외 4명 (대상자 내역 별지) | C38: 젖소 더위방지용 대형선풍기 지원 | D38: 민간자본사업보조 | E38: 3,000천원 * 5대 * 50% | F38: 9,000 | G38: 15,000 | H38: 7,500 | I38: 7,500 | J38: 7,500 | K38: 7,500
A39: 산림축산과 | B39: 예천읍 남읍내길 4-50 박창섭 외 8명 (대상자 내역 별지) | C39: 낙농가 유질개선제 지원 | D39: 민간자본사업보조 | E39: 30천원 * 1,000포 * 50% | F39: 12,000 | G39: 30,000 | H39: 15,000 | I39: 15,000 | J39: 15,000 | K39: 15,000
A40: 산림축산과 | B40: 예천읍 봉덕로 52 김진옥 외 149명 (대상자 내역 별지) | C40: 꿀벌 화분 지원 | D40: 민간자본사업보조 | E40: 8천원 * 7,700kg * 60% | F40: 33,120 | G40: =SUM(H40:I40) -> 61,600 | H40: 36,960 | I40: 24,640 | J40: 36,960 | K40: 36,960
A41: 산림축산과 | B41: 예천읍 땅골못길 197-8 윤여한 외 105명 (대상자 내역 별지) | C41: 양봉 벌통 지원 | D41: 민간자본사업보조 | E41: 30천원 * 2,200개 * 60% | G41: =SUM(H41:I41) -> 66,000 | H41: 39,600 | I41: 26,400 | J41: 39,600 | K41: 39,600
A42: 산림축산과 | B42: 예천읍 석정길 145-54 전원필 외 361명 (대상자 내역 별지) | C42: 축산분뇨처리용 톱밥지원사업 | D42: 민간자본사업보조 | E42: 3천원 * 50,000포 * 50% | F42: 60,000 | G42: 150,000 | H42: 75,000 | I42: 75,000 | J42: 75,000 | K42: 75,000

Sheet 대상자별지내역
A1: 2019년도 제1회 예천군 보조금심의위원회 대상자내역 별지 조서
L2: (단위 : 천원)
A3: 부서명 | B3: 보 조 사 업 자 | D3: 보 조 사 업 명 | E3: 과목명 | F3: 사 업 내 용 | G3: 2018년 지원액 | H3: 계 | I3: 보조금 | J3: 자부담 | K3: 1차 (해당부서) | L3: 2차 (예산부서) | M3: 3차 (위원회)
B4: 주소 | C4: 성명
A5: 소계 | B5: 주민복지실 소계 | D5: =SUBTOTAL(103,D6:D7)&"건" -> 2건 | G5: =SUBTOTAL(9,G6:G17) -> 0 | H5: =SUBTOTAL(9,H6:H7) -> 69,740 | I5: =SUBTOTAL(9,I6:I7) -> 34,870 | J5: 34,870 | K5: 34,870 | L5: 34,870
A6: 주민복지실 | B6: 예천지역아동센터 | C6: 이동희 | D6: 지역아동센터 환경개선 | E6: 사회복지사업보조 | F6: 지역아동센터 환경개선비(방충망, 조명교체, 붙박이장 설치 등) : 7,990 | G6: - | H6: =SUM(I6:J6) -> 15,980 | I6: 7,990 | J6: 7,990 | K6: 7,990 | L6: 7,990
A7: 주민복지실 | B7: 참길지역아동센터 | C7: 김완기 | D7: 지역아동센터 환경개선 | E7: 사회복지사업보조 | F7: 지역아동센터 환경개선비(중문, 붙박이장 설치, 주방 수리 등) : 26,880 | G7: - | H7: 53,760 | I7: 26,880 | J7: 26,880 | K7: 26,880 | L7: 26,880
A8: 소계 | B8: 새마을경제과 소계 | D8: =SUBTOTAL(103,D9:D12)&"건" -> 4건 | G8: =SUBTOTAL(9,G9:G20) -> 0 | H8: =SUBTOTAL(9,H9:H12) -> 5,628 | I8: =SUBTOTAL(9,I9:I12) -> 4,020 | J8: 1,608 | K8: 4,020 | L8: 4,020
A9: 새마을경제과 | B9: 예천읍 밤나무골길 33 동신그린타운 101-402 | C9: 강성목 | D9: 미니태양광 보급지원사업 | E9: 민간자본사업보조 | F9: 1,407천원 * 1식 | G9: 0 | H9: =SUM(I9:J9) -> 1,407 | I9: 1,005 | J9: 402 | K9: 1,005 | L9: 1,005
A10: 새마을경제과 | B10: 예천읍 밤나무골길 33 동신그린타운 101-202 | C10: 김홍국 | D10: 미니태양광 보급지원사업 | E10: 민간자본사업보조 | F10: 1,407천원 * 1식 | G10: 0 | H10: 1,407 | I10: 1,005 | J10: 402 | K10: 1,005 | L10: 1,005
A11: 새마을경제과 | B11: 예천읍 밤나무골길 33 동신그린타운 101-401 | C11: 신상대 | D11: 미니태양광 보급지원사업 | E11: 민간자본사업보조 | F11: 1,407천원 * 1식 | G11: 0 | H11: 1,407 | I11: 1,005 | J11: 402 | K11: 1,005 | L11: 1,005
A12: 새마을경제과 | B12: 예천읍 밤나무골길 33 동신그린타운 101-104 | C12: 이재호 | D12: 미니태양광 보급지원사업 | E12: 민간자본사업보조 | F12: 1,407천원 * 1식 | G12: 0 | H12: 1,407 | I12: 1,005 | J12: 402 | K12: 1,005 | L12: 1,005
A13: 소계 | B13: 농정과 소계 | D13: =SUBTOTAL(103,D14:D663)&"건" -> 650건 | G13: =SUBTOTAL(9,G14:G24) -> 0 | H13: =SUBTOTAL(9,H14:H663) -> 772,348 | I13: =SUBTOTAL(9,I14:I663) -> 447,674 | J13: 324,674 | K13: 447,674 | L13: 447,674
A14: 농정과 | B14: 예천읍 대심2길 60-4 | C14: 천미연 | D14: 농산물 유통효율화지원 (농용컨테이너 상자운반기) | E14: 민간자본사업보조 | F14: 3,000천원 * 1대 * 50% | G14: 0 | H14: 3,000 | I14: 1,500 | J14: 1,500 | K14: 1,500 | L14: 1,500
A15: 농정과 | B15: 용문면 금당실길 65 | C15: 주용하 | D15: 농산물 유통효율화지원 (농용컨테이너 상자운반기) | E15: 민간자본사업보조 | F15: 3,000천원 * 1대 * 50% | G15: 0 | H15: 3,000 | I15: 1,500 | J15: 1,500 | K15: 1,500 | L15: 1,500
A16: 농정과 | B16: 용문면 사부령길 16-30 | C16: 최수옥 | D16: 농산물 유통효율화지원 (농용컨테이너 상자운반기) | E16: 민간자본사업보조 | F16: 3,000천원 * 1대 * 50% | G16: 0 | H16: 3,000 | I16: 1,500 | J16: 1,500 | K16: 1,500 | L16: 1,500
A17: 농정과 | B17: 은풍면 한감길 64 | C17: 안정교 | D17: 농산물 유통효율화지원 (농용컨테이너 상자운반기) | E17: 민간자본사업보조 | F17: 3,000천원 * 1대 * 50% | G17: 0 | H17: 3,000 | I17: 1,500 | J17: 1,500 | K17: 1,500 | L17: 1,500
A18: 농정과 | B18: 은풍면 율곡1길 161 | C18: 김택성 | D18: 농산물 유통효율화지원 (농용컨테이너 상자운반기) | E18: 민간자본사업보조 | F18: 3,000천원 * 1대 * 50% | G18: 0 | H18: 3,000 | I18: 1,500 | J18: 1,500 | K18: 1,500 | L18: 1,500
A19: 농정과 | B19: 감천면 관현2길 5 | C19: 안성모 | D19: 농산물 유통효율화지원 (농용컨테이너 상자운반기) | E19: 민간자본사업보조 | F19: 3,000천원 * 1대 * 50% | G19: 0 | H19: 3,000 | I19: 1,500 | J19: 1,500 | K19: 1,500 | L19: 1,500
A20: 농정과 | B20: 감천면 수용골길 319 | C20: 박기상 | D20: 농산물 유통효율화지원 (농용컨테이너 상자운반기) | E20: 민간자본사업보조 | F20: 3,000천원 * 1대 * 50% | G20: 0 | H20: 3,000 | I20: 1,500 | J20: 1,500 | K20: 1,500 | L20: 1,500
A21: 농정과 | B21: 감천면 수한길 196 | C21: 진병훈 | D21: 농산물 유통효율화지원 (농용컨테이너 상자운반기) | E21: 민간자본사업보조 | F21: 3,000천원 * 1대 * 50% | G21: 0 | H21: 3,000 | I21: 1,500 | J21: 1,500 | K21: 1,500 | L21: 1,500
A22: 농정과 | B22: 감천면 벌방1길 33-13 | C22: 유경호 | D22: 농산물 유통효율화지원 (농용컨테이너 상자운반기) | E22: 민간자본사업보조 | F22: 3,000천원 * 1대 * 50% | G22: 0 | H22: 3,000 | I22: 1,500 | J22: 1,500 | K22: 1,500 | L22: 1,500
A23: 농정과 | B23: 감천면 벌방1길 23-3 | C23: 유재선 | D23: 농산물 유통효율화지원 (농용컨테이너 상자운반기) | E23: 민간자본사업보조 | F23: 3,000천원 * 1대 * 50% | G23: 0 | H23: 3,000 | I23: 1,500 | J23: 1,500 | K23: 1,500 | L23: 1,500
A24: 농정과 | B24: 보문면 가거리길 36 | C24: 김도영 | D24: 농산물 유통효율화지원 (농용컨테이너 상자운반기) | E24: 민간자본사업보조 | F24: 3,000천원 * 1대 * 50% | G24: 0 | H24: 3,000 | I24: 1,500 | J24: 1,500 | K24: 1,500 | L24: 1,500
A25: 농정과 | B25: 호명면 담암길 44-9 | C25: 신문수 | D25: 농산물 유통효율화지원 (농용컨테이너 상자운반기) | E25: 민간자본사업보조 | F25: 3,000천원 * 1대 * 50% | G25: 0 | H25: 3,000 | I25: 1,500 | J25: 1,500 | K25: 1,500 | L25: 1,500
A26: 농정과 | B26: 지보면 대죽길 172 | C26: 박상섭 | D26: 농산물 유통효율화지원 (농용컨테이너 상자운반기) | E26: 민간자본사업보조 | F26: 3,000천원 * 1대 * 50% | G26: 0 | H26: 3,000 | I26: 1,500 | J26: 1,500 | K26: 1,500 | L26: 1,500
A27: 농정과 | B27: 예천읍 왕신길 281 | C27: 권오문 | D27: 원예특작분야 토양개량제 지원사업 | E27: 민간자본사업보조 | F27: 1,200천원 * 1식 * 50% | G27: 0 | H27: 1,200 | I27: 600 | J27: 600 | K27: 600 | L27: 600
A28: 농정과 | B28: 호명면 담암길 89 | C28: 장재열 | D28: 원예특작분야 토양개량제 지원사업 | E28: 민간자본사업보조 | F28: 1,200천원 * 1식 * 50% | G28: 0 | H28: 1,200 | I28: 600 | J28: 600 | K28: 600 | L28: 600
A29: 농정과 | B29: 호명면 종산길 300 | C29: 황현근 | D29: 원예특작분야 토양개량제 지원사업 | E29: 민간자본사업보조 | F29: 1,200천원 * 1식 * 50% | G29: 0 | H29: 1,200 | I29: 600 | J29: 600 | K29: 600 | L29: 600
A30: 농정과 | B30: 지보면 오송길 34-14 | C30: 권재규 | D30: 원예특작분야 토양개량제 지원사업 | E30: 민간자본사업보조 | F30: 600천원 * 1식 * 50% | G30: 0 | H30: 600 | I30: 300 | J30: 300 | K30: 300 | L30: 300
A31: 농정과 | B31: 지보면 예지로 762-25 | C31: 장조수 | D31: 원예특작분야 토양개량제 지원사업 | E31: 민간자본사업보조 | F31: 1,500천원 * 1식 * 50% | G31: 0 | H31: 1,500 | I31: 750 | J31: 750 | K31: 750 | L31: 750
A32: 농정과 | B32: 예천읍 양촌길 5-3 | C32: 권세운 | D32: 원예특작분야 토양개량제 지원사업 | E32: 민간자본사업보조 | F32: 900천원 * 1식 * 50% | G32: 0 | H32: 900 | I32: 450 | J32: 450 | K32: 450 | L32: 450
A33: 농정과 | B33: 예천읍 상동길 18-4 | C33: 권혁삼 | D33: 원예특작분야 토양개량제 지원사업 | E33: 민간자본사업보조 | F33: 1,200천원 * 1식 * 50% | G33: 0 | H33: 1,200 | I33: 600 | J33: 600 | K33: 600 | L33: 600
A34: 농정과 | B34: 예천읍 남산공원길 9-3 | C34: 이양재 | D34: 원예특작분야 토양개량제 지원사업 | E34: 민간자본사업보조 | F34: 1,200천원 * 1식 * 50% | G34: 0 | H34: 1,200 | I34: 600 | J34: 600 | K34: 600 | L34: 600
A35: 농정과 | B35: 예천읍 원고개길 116-1 | C35: 전병열 | D35: 원예특작분야 토양개량제 지원사업 | E35: 민간자본사업보조 | F35: 600천원 * 1식 * 50% | G35: 0 | H35: 600 | I35: 300 | J35: 300 | K35: 300 | L35: 300
A36: 농정과 | B36: 예천읍 왕신길 285-4 | C36: 최병언 | D36: 원예특작분야 토양개량제 지원사업 | E36: 민간자본사업보조 | F36: 4,500천원 * 1식 * 50% | G36: 0 | H36: 4,500 | I36: 2,250 | J36: 2,250 | K36: 2,250 | L36: 2,250
A37: 농정과 | B37: 예천읍 대심로 87 | C37: 박호서 | D37: 원예특작분야 토양개량제 지원사업 | E37: 민간자본사업보조 | F37: 270천원 * 1식 * 50% | G37: 0 | H37: 270 | I37: 135 | J37: 135 | K37: 135 | L37: 135
A38: 농정과 | B38: 예천읍 대심로 87 | C38: 박호서 | D38: 원예특작분야 토양개량제 지원사업 | E38: 민간자본사업보조 | F38: 180천원 * 1식 * 50% | G38: 0 | H38: 180 | I38: 90 | J38: 90 | K38: 90 | L38: 90
A39: 농정과 | B39: 예천읍 대심로 87 | C39: 박호서 | D39: 원예특작분야 토양개량제 지원사업 | E39: 민간자본사업보조 | F39: 270천원 * 1식 * 50% | G39: 0 | H39: 270 | I39: 135 | J39: 135 | K39: 135 | L39: 135
A40: 농정과 | B40: 예천읍 대심로 87 | C40: 박호서 | D40: 원예특작분야 토양개량제 지원사업 | E40: 민간자본사업보조 | F40: 360천원 * 1식 * 50% | G40: 0 | H40: 360 | I40: 180 | J40: 180 | K40: 180 | L40: 180
A41: 농정과 | B41: 예천읍 신리길 58-11 | C41: 오윤섭 | D41: 원예특작분야 토양개량제 지원사업 | E41: 민간자본사업보조 | F41: 900천원 * 1식 * 50% | G41: 0 | H41: 900 | I41: 450 | J41: 450 | K41: 450 | L41: 450
A42: 농정과 | B42: 예천읍 신리길 58-11 | C42: 오윤섭 | D42: 원예특작분야 토양개량제 지원사업 | E42: 민간자본사업보조 | F42: 600천원 * 1식 * 50% | G42: 0 | H42: 600 | I42: 300 | J42: 300 | K42: 300 | L42: 300
A43: 농정과 | B43: 예천읍 신리길 58-11 | C43: 오윤섭 | D43: 원예특작분야 토양개량제 지원사업 | E43: 민간자본사업보조 | F43: 900천원 * 1식 * 50% | G43: 0 | H43: 900 | I43: 450 | J43: 450 | K43: 450 | L43: 450
A44: 농정과 | B44: 예천읍 신리길 58-11 | C44: 오윤섭 | D44: 원예특작분야 토양개량제 지원사업 | E44: 민간자본사업보조 | F44: 1,200천원*1식*50% | G44: 0 | H44: 1,200 | I44: 600 | J44: 600 | K44: 600 | L44: 600
A45: 농정과 | B45: 예천읍 대심1길 86 | C45: 최태식 | D45: 원예특작분야 토양개량제 지원사업 | E45: 민간자본사업보조 | F45: 600천원 * 1식 * 50% | G45: 0 | H45: 600 | I45: 300 | J45: 300 | K45: 300 | L45: 300
A46: 농정과 | B46: 예천읍 대심1길 86 | C46: 최태식 | D46: 원예특작분야 토양개량제 지원사업 | E46: 민간자본사업보조 | F46: 400천원 * 1식 * 50% | G46: 0 | H46: 400 | I46: 200 | J46: 200 | K46: 200 | L46: 200
A47: 농정과 | B47: 예천읍 대심1길 86 | C47: 최태식 | D47: 원예특작분야 토양개량제 지원사업 | E47: 민간자본사업보조 | F47: 600천원 * 1식 * 50% | G47: 0 | H47: 600 | I47: 300 | J47: 300 | K47: 300 | L47: 300
A48: 농정과 | B48: 예천읍 대심1길 86 | C48: 최태식 | D48: 원예특작분야 토양개량제 지원사업 | E48: 민간자본사업보조 | F48: 800천원 * 1식 * 50% | G48: 0 | H48: 800 | I48: 400 | J48: 400 | K48: 400 | L48: 400
A49: 농정과 | B49: 예천읍 왕신길 278-8 | C49: 권영특 | D49: 원예특작분야 토양개량제 지원사업 | E49: 민간자본사업보조 | F49: 900천원 * 1식 * 50% | G49: 0 | H49: 900 | I49: 450 | J49: 450 | K49: 450 | L49: 450
A50: 농정과 | B50: 예천읍 왕신길 273-1 | C50: 권오중 | D50: 원예특작분야 토양개량제 지원사업 | E50: 민간자본사업보조 | F50: 900천원 * 1식 * 50% | G50: 0 | H50: 900 | I50: 450 | J50: 450 | K50: 450 | L50: 450
A51: 농정과 | B51: 예천읍 왕신길 277 | C51: 김광한 | D51: 원예특작분야 토양개량제 지원사업 | E51: 민간자본사업보조 | F51: 750천원 * 1식 * 50% | G51: 0 | H51: 750 | I51: 375 | J51: 375 | K51: 375 | L51: 375
A52: 농정과 | B52: 예천읍 왕신길 252-2 | C52: 김대아 | D52: 원예특작분야 토양개량제 지원사업 | E52: 민간자본사업보조 | F52: 450천원 * 1식 * 50% | G52: 0 | H52: 450 | I52: 225 | J52: 225 | K52: 225 | L52: 225
A53: 농정과 | B53: 예천읍 용정길 11-20 | C53: 김성기 | D53: 원예특작분야 토양개량제 지원사업 | E53: 민간자본사업보조 | F53: 1,050천원 * 1식 * 50% | G53: 0 | H53: 1,050 | I53: 525 | J53: 525 | K53: 525 | L53: 525
A54: 농정과 | B54: 예천읍 맛고을길 22 | C54: 김영근 | D54: 원예특작분야 토양개량제 지원사업 | E54: 민간자본사업보조 | F54: 600천원 * 1식 * 50% | G54: 0 | H54: 600 | I54: 300 | J54: 300 | K54: 300 | L54: 300
A55: 농정과 | B55: 예천읍 봉덕로 52 | C55: 김인한 | D55: 원예특작분야 토양개량제 지원사업 | E55: 민간자본사업보조 | F55: 600천원 * 1식 * 50% | G55: 0 | H55: 600 | I55: 300 | J55: 300 | K55: 300 | L55: 300
A56: 농정과 | B56: 예천읍 왕신1리길 98 | C56: 김한영 | D56: 원예특작분야 토양개량제 지원사업 | E56: 민간자본사업보조 | F56: 750천원 * 1식 * 50% | G56: 0 | H56: 750 | I56: 375 | J56: 375 | K56: 375 | L56: 375
A57: 농정과 | B57: 예천읍 수항길 91-5 | C57: 신운철 | D57: 원예특작분야 토양개량제 지원사업 | E57: 민간자본사업보조 | F57: 600천원 * 1식 * 50% | G57: 0 | H57: 600 | I57: 300 | J57: 300 | K57: 300 | L57: 300
A58: 농정과 | B58: 예천읍 무근열길 189 | C58: 이기태 | D58: 원예특작분야 토양개량제 지원사업 | E58: 민간자본사업보조 | F58: 750천원 * 1식 * 50% | G58: 0 | H58: 750 | I58: 375 | J58: 375 | K58: 375 | L58: 375
A59: 농정과 | B59: 예천읍 왕신길 260 | C59: 이남규 | D59: 원예특작분야 토양개량제 지원사업 | E59: 민간자본사업보조 | F59: 900천원 * 1식 * 50% | G59: 0 | H59: 900 | I59: 450 | J59: 450 | K59: 450 | L59: 450
A60: 농정과 | B60: 예천읍 남산공원길 12 | C60: 이대직 | D60: 원예특작분야 토양개량제 지원사업 | E60: 민간자본사업보조 | F60: 900천원 * 1식 * 50% | G60: 0 | H60: 900 | I60: 450 | J60: 450 | K60: 450 | L60: 450
A61: 농정과 | B61: 예천읍 담암길 73 | C61: 장규호 | D61: 원예특작분야 토양개량제 지원사업 | E61: 민간자본사업보조 | F61: 600천원 * 1식 * 50% | G61: 0 | H61: 600 | I61: 300 | J61: 300 | K61: 300 | L61: 300
A62: 농정과 | B62: 예천읍 왕신길 266-6 | C62: 전재홍 | D62: 원예특작분야 토양개량제 지원사업 | E62: 민간자본사업보조 | F62: 900천원 * 1식 * 50% | G62: 0 | H62: 900 | I62: 450 | J62: 450 | K62: 450 | L62: 450
A63: 농정과 | B63: 예천읍 흑응로 147 | C63: 한규일 | D63: 원예특작분야 토양개량제 지원사업 | E63: 민간자본사업보조 | F63: 600천원 * 1식 * 50% | G63: 0 | H63: 600 | I63: 300 | J63: 300 | K63: 300 | L63: 300
A64: 농정과 | B64: 용문면 사부령길 119 | C64: 김의주 | D64: 원예특작분야 토양개량제 지원사업 | E64: 민간자본사업보조 | F64: 750천원 * 1식 * 50% | G64: 0 | H64: 750 | I64: 375 | J64: 375 | K64: 375 | L64: 375
A65: 농정과 | B65: 용문면 하학길 31-21 | C65: 김학윤 | D65: 원예특작분야 토양개량제 지원사업 | E65: 민간자본사업보조 | F65: 80천원 * 1식 * 50% | G65: 0 | H65: 80 | I65: 40 | J65: 40 | K65: 40 | L65: 40
A66: 농정과 | B66: 용문면 재달길 42 | C66: 권오성 | D66: 원예특작분야 토양개량제 지원사업 | E66: 민간자본사업보조 | F66: 160천원 * 1식 * 50% | G66: 0 | H66: 160 | I66: 80 | J66: 80 | K66: 80 | L66: 80
A67: 농정과 | B67: 용문면 하학길 52 | C67: 박창호 | D67: 원예특작분야 토양개량제 지원사업 | E67: 민간자본사업보조 | F67: 160천원 * 1식 * 50% | G67: 0 | H67: 160 | I67: 80 | J67: 80 | K67: 80 | L67: 80
A68: 농정과 | B68: 용문면 사부령길 272 | C68: 김영식 | D68: 원예특작분야 토양개량제 지원사업 | E68: 민간자본사업보조 | F68: 625천원 * 1식 * 50% | G68: 0 | H68: 625 | I68: 313 | J68: 313 | K68: 313 | L68: 313
A69: 농정과 | B69: 용문면 사부령길 272 | C69: 김영식 | D69: 원예특작분야 토양개량제 지원사업 | E69: 민간자본사업보조 | F69: 750천원 * 1식 * 50% | G69: 0 | H69: 750 | I69: 375 | J69: 375 | K69: 375 | L69: 375
A70: 농정과 | B70: 용문면 사부령길 266 | C70: 김정안 | D70: 원예특작분야 토양개량제 지원사업 | E70: 민간자본사업보조 | F70: 500천원 * 1식 * 50% | G70: 0 | H70: 500 | I70: 250 | J70: 250 | K70: 250 | L70: 250
A71: 농정과 | B71: 용문면 사부령길 266 | C71: 김정안 | D71: 원예특작분야 토양개량제 지원사업 | E71: 민간자본사업보조 | F71: 600천원 * 1식 * 50% | G71: 0 | H71: 600 | I71: 300 | J71: 300 | K71: 300 | L71: 300
A72: 농정과 | B72: 용문면 사부령길 120-58 | C72: 서영석 | D72: 원예특작분야 토양개량제 지원사업 | E72: 민간자본사업보조 | F72: 250천원 * 1식 * 50% | G72: 0 | H72: 250 | I72: 125 | J72: 125 | K72: 125 | L72: 125
A73: 농정과 | B73: 용문면 사부령길 120-58 | C73: 서영석 | D73: 원예특작분야 토양개량제 지원사업 | E73: 민간자본사업보조 | F73: 300천원 * 1식 * 50% | G73: 0 | H73: 300 | I73: 150 | J73: 150 | K73: 150 | L73: 150
A74: 농정과 | B74: 용문면 사부령길 147-38 | C74: 심상현 | D74: 원예특작분야 토양개량제 지원사업 | E74: 민간자본사업보조 | F74: 75천원 * 1식 * 50% | G74: 0 | H74: 75 | I74: 38 | J74: 38 | K74: 38 | L74: 38
A75: 농정과 | B75: 용문면 사부령길 147-38 | C75: 심상현 | D75: 원예특작분야 토양개량제 지원사업 | E75: 민간자본사업보조 | F75: 90천원 * 1식 * 50% | G75: 0 | H75: 90 | I75: 45 | J75: 45 | K75: 45 | L75: 45
A76: 농정과 | B76: 용문면 사부령길 121-62 | C76: 윤여전 | D76: 원예특작분야 토양개량제 지원사업 | E76: 민간자본사업보조 | F76: 100천원 * 1식 * 50% | G76: 0 | H76: 100 | I76: 50 | J76: 50 | K76: 50 | L76: 50
A77: 농정과 | B77: 용문면 사부령길 121-62 | C77: 윤여전 | D77: 원예특작분야 토양개량제 지원사업 | E77: 민간자본사업보조 | F77: 120천원 * 1식 * 50% | G77: 0 | H77: 120 | I77: 60 | J77: 60 | K77: 60 | L77: 60
A78: 농정과 | B78: 용문면 우망골길 100-10 | C78: 윤여진 | D78: 원예특작분야 토양개량제 지원사업 | E78: 민간자본사업보조 | F78: 125천원 * 1식 * 50% | G78: 0 | H78: 125 | I78: 63 | J78: 63 | K78: 63 | L78: 63
A79: 농정과 | B79: 용문면 우망골길 100-10 | C79: 윤여진 | D79: 원예특작분야 토양개량제 지원사업 | E79: 민간자본사업보조 | F79: 150천원 * 1식 * 50% | G79: 0 | H79: 150 | I79: 75 | J79: 75 | K79: 75 | L79: 75
A80: 농정과 | B80: 용문면 용문경천로 595-65 | C80: 이상택 | D80: 원예특작분야 토양개량제 지원사업 | E80: 민간자본사업보조 | F80: 200천원 * 1식 * 50% | G80: 0 | H80: 200 | I80: 100 | J80: 100 | K80: 100 | L80: 100
A81: 농정과 | B81: 용문면 용문경천로 595-65 | C81: 이상택 | D81: 원예특작분야 토양개량제 지원사업 | E81: 민간자본사업보조 | F81: 240천원 * 1식 * 50% | G81: 0 | H81: 240 | I81: 120 | J81: 120 | K81: 120 | L81: 120
A82: 농정과 | B82: 용문면 사부령길 357 | C82: 이수의 | D82: 원예특작분야 토양개량제 지원사업 | E82: 민간자본사업보조 | F82: 125천원 * 1식 * 50% | G82: 0 | H82: 125 | I82: 63 | J82: 63 | K82: 63 | L82: 63
A83: 농정과 | B83: 용문면 사부령길 357 | C83: 이수의 | D83: 원예특작분야 토양개량제 지원사업 | E83: 민간자본사업보조 | F83: 150천원 * 1식 * 50% | G83: 0 | H83: 150 | I83: 75 | J83: 75 | K83: 75 | L83: 75
A84: 농정과 | B84: 용문면 우망골길 102-6 | C84: 임봉규 | D84: 원예특작분야 토양개량제 지원사업 | E84: 민간자본사업보조 | F84: 250천원 * 1식 * 50% | G84: 0 | H84: 250 | I84: 125 | J84: 125 | K84: 125 | L84: 125
A85: 농정과 | B85: 용문면 우망골길 102-6 | C85: 임봉규 | D85: 원예특작분야 토양개량제 지원사업 | E85: 민간자본사업보조 | F85: 300천원 * 1식 * 50% | G85: 0 | H85: 300 | I85: 150 | J85: 150 | K85: 150 | L85: 150
A86: 농정과 | B86: 용문면 우망골길 99 | C86: 임용규 | D86: 원예특작분야 토양개량제 지원사업 | E86: 민간자본사업보조 | F86: 250천원 * 1식 * 50% | G86: 0 | H86: 250 | I86: 125 | J86: 125 | K86: 125 | L86: 125
A87: 농정과 | B87: 용문면 우망골길 99 | C87: 임용규 | D87: 원예특작분야 토양개량제 지원사업 | E87: 민간자본사업보조 | F87: 300천원 * 1식 * 50% | G87: 0 | H87: 300 | I87: 150 | J87: 150 | K87: 150 | L87: 150
A88: 농정과 | B88: 용문면 우망골길 59 | C88: 최정순 | D88: 원예특작분야 토양개량제 지원사업 | E88: 민간자본사업보조 | F88: 250천원 * 1식 * 50% | G88: 0 | H88: 250 | I88: 125 | J88: 125 | K88: 125 | L88: 125
A89: 농정과 | B89: 용문면 우망골길 59 | C89: 최정순 | D89: 원예특작분야 토양개량제 지원사업 | E89: 민간자본사업보조 | F89: 300천원 * 1식 * 50% | G89: 0 | H89: 300 | I89: 150 | J89: 150 | K89: 150 | L89: 150
A90: 농정과 | B90: 용문면 우망골길 103 | C90: 황병일 | D90: 원예특작분야 토양개량제 지원사업 | E90: 민간자본사업보조 | F90: 100천원 * 1식 * 50% | G90: 0 | H90: 100 | I90: 50 | J90: 50 | K90: 50 | L90: 50
A91: 농정과 | B91: 용문면 우망골길 103 | C91: 황병일 | D91: 원예특작분야 토양개량제 지원사업 | E91: 민간자본사업보조 | F91: 120천원 * 1식 * 50% | G91: 0 | H91: 120 | I91: 60 | J91: 60 | K91: 60 | L91: 60
A92: 농정과 | B92: 용문면 우망골길 100 | C92: 황영두 | D92: 원예특작분야 토양개량제 지원사업 | E92: 민간자본사업보조 | F92: 125천원 * 1식 * 50% | G92: 0 | H92: 125 | I92: 63 | J92: 63 | K92: 63 | L92: 63
A93: 농정과 | B93: 용문면 우망골길 100 | C93: 황영두 | D93: 원예특작분야 토양개량제 지원사업 | E93: 민간자본사업보조 | F93: 150천원 * 1식 * 50% | G93: 0 | H93: 150 | I93: 75 | J93: 75 | K93: 75 | L93: 75
A94: 농정과 | B94: 용문면 두천길 23 | C94: 강난희 | D94: 원예특작분야 토양개량제 지원사업 | E94: 민간자본사업보조 | F94: 250천원 * 1식 * 50% | G94: 0 | H94: 250 | I94: 125 | J94: 125 | K94: 125 | L94: 125
A95: 농정과 | B95: 용문면 두천길 23 | C95: 강난희 | D95: 원예특작분야 토양개량제 지원사업 | E95: 민간자본사업보조 | F95: 300천원 * 1식 * 50% | G95: 0 | H95: 300 | I95: 150 | J95: 150 | K95: 150 | L95: 150
A96: 농정과 | B96: 용문면 두천길 71 | C96: 손관수 | D96: 원예특작분야 토양개량제 지원사업 | E96: 민간자본사업보조 | F96: 500천원 * 1식 * 50% | G96: 0 | H96: 500 | I96: 250 | J96: 250 | K96: 250 | L96: 250
A97: 농정과 | B97: 용문면 두천길 71 | C97: 손관수 | D97: 원예특작분야 토양개량제 지원사업 | E97: 민간자본사업보조 | F97: 600천원 * 1식 * 50% | G97: 0 | H97: 600 | I97: 300 | J97: 300 | K97: 300 | L97: 300
A98: 농정과 | B98: 용문면 두천길 89-9 | C98: 손동주 | D98: 원예특작분야 토양개량제 지원사업 | E98: 민간자본사업보조 | F98: 250천원 * 1식 * 50% | G98: 0 | H98: 250 | I98: 125 | J98: 125 | K98: 125 | L98: 125
A99: 농정과 | B99: 용문면 두천길 89-9 | C99: 손동주 | D99: 원예특작분야 토양개량제 지원사업 | E99: 민간자본사업보조 | F99: 300천원 * 1식 * 50% | G99: 0 | H99: 300 | I99: 150 | J99: 150 | K99: 150 | L99: 150
A100: 농정과 | B100: 용문면 두천길 89-12 | C100: 손맹원 | D100: 원예특작분야 토양개량제 지원사업 | E100: 민간자본사업보조 | F100: 750천원 * 1식 * 50% | G100: 0 | H100: 750 | I100: 375 | J100: 375 | K100: 375 | L100: 375
A101: 농정과 | B101: 용문면 두천길 89-12 | C101: 손맹원 | D101: 원예특작분야 토양개량제 지원사업 | E101: 민간자본사업보조 | F101: 900천원 * 1식 * 50% | G101: 0 | H101: 900 | I101: 450 | J101: 450 | K101: 450 | L101: 450
A102: 농정과 | B102: 용문면 두천길 32-5 | C102: 손병건 | D102: 원예특작분야 토양개량제 지원사업 | E102: 민간자본사업보조 | F102: 250천원 * 1식 * 50% | G102: 0 | H102: 250 | I102: 125 | J102: 125 | K102: 125 | L102: 125
A103: 농정과 | B103: 용문면 두천길 32-5 | C103: 손병건 | D103: 원예특작분야 토양개량제 지원사업 | E103: 민간자본사업보조 | F103: 300천원 * 1식 * 50% | G103: 0 | H103: 300 | I103: 150 | J103: 150 | K103: 150 | L103: 150
A104: 농정과 | B104: 용문면 두천길 28 | C104: 손병달 | D104: 원예특작분야 토양개량제 지원사업 | E104: 민간자본사업보조 | F104: 500천원 * 1식 * 50% | G104: 0 | H104: 500 | I104: 250 | J104: 250 | K104: 250 | L104: 250
A105: 농정과 | B105: 용문면 두천길 28 | C105: 손병달 | D105: 원예특작분야 토양개량제 지원사업 | E105: 민간자본사업보조 | F105: 600천원 * 1식 * 50% | G105: 0 | H105: 600 | I105: 300 | J105: 300 | K105: 300 | L105: 300
A106: 농정과 | B106: 용문면 두천길 50-1 | C106: 손병욱 | D106: 원예특작분야 토양개량제 지원사업 | E106: 민간자본사업보조 | F106: 500천원 * 1식 * 50% | G106: 0 | H106: 500 | I106: 250 | J106: 250 | K106: 250 | L106: 250
A107: 농정과 | B107: 용문면 두천길 50-1 | C107: 손병욱 | D107: 원예특작분야 토양개량제 지원사업 | E107: 민간자본사업보조 | F107: 600천원 * 1식 * 50% | G107: 0 | H107: 600 | I107: 300 | J107: 300 | K107: 300 | L107: 300
A108: 농정과 | B108: 용문면 용문경천로 526 | C108: 손병조 | D108: 원예특작분야 토양개량제 지원사업 | E108: 민간자본사업보조 | F108: 500천원 * 1식 * 50% | G108: 0 | H108: 500 | I108: 250 | J108: 250 | K108: 250 | L108: 250
A109: 농정과 | B109: 용문면 용문경천로 526 | C109: 손병조 | D109: 원예특작분야 토양개량제 지원사업 | E109: 민간자본사업보조 | F109: 600천원 * 1식 * 50% | G109: 0 | H109: 600 | I109: 300 | J109: 300 | K109: 300 | L109: 300
A110: 농정과 | B110: 용문면 용문경천로 604-11 | C110: 손병탁 | D110: 원예특작분야 토양개량제 지원사업 | E110: 민간자본사업보조 | F110: 250천원 * 1식 * 50% | G110: 0 | H110: 250 | I110: 125 | J110: 125 | K110: 125 | L110: 125
A111: 농정과 | B111: 용문면 용문경천로 604-11 | C111: 손병탁 | D111: 원예특작분야 토양개량제 지원사업 | E111: 민간자본사업보조 | F111: 300천원 * 1식 * 50% | G111: 0 | H111: 300 | I111: 150 | J111: 150 | K111: 150 | L111: 150
A112: 농정과 | B112: 용문면 두천길 88-18 | C112: 손원달 | D112: 원예특작분야 토양개량제 지원사업 | E112: 민간자본사업보조 | F112: 500천원 * 1식 * 50% | G112: 0 | H112: 500 | I112: 250 | J112: 250 | K112: 250 | L112: 250
A113: 농정과 | B113: 용문면 두천길 88-18 | C113: 손원달 | D113: 원예특작분야 토양개량제 지원사업 | E113: 민간자본사업보조 | F113: 600천원 * 1식 * 50% | G113: 0 | H113: 600 | I113: 300 | J113: 300 | K113: 300 | L113: 300
A114: 농정과 | B114: 용문면 두천길 10 | C114: 신종무 | D114: 원예특작분야 토양개량제 지원사업 | E114: 민간자본사업보조 | F114: 375천원 * 1식 * 50% | G114: 0 | H114: 375 | I114: 188 | J114: 188 | K114: 188 | L114: 188
A115: 농정과 | B115: 용문면 두천길 10 | C115: 신종무 | D115: 원예특작분야 토양개량제 지원사업 | E115: 민간자본사업보조 | F115: 450천원 * 1식 * 50% | G115: 0 | H115: 450 | I115: 225 | J115: 225 | K115: 225 | L115: 225
A116: 농정과 | B116: 용문면 두천길 22 | C116: 황수희 | D116: 원예특작분야 토양개량제 지원사업 | E116: 민간자본사업보조 | F116: 500천원 * 1식 * 50% | G116: 0 | H116: 500 | I116: 250 | J116: 250 | K116: 250 | L116: 250
A117: 농정과 | B117: 용문면 두천길 22 | C117: 황수희 | D117: 원예특작분야 토양개량제 지원사업 | E117: 민간자본사업보조 | F117: 600천원 * 1식 * 50% | G117: 0 | H117: 600 | I117: 300 | J117: 300 | K117: 300 | L117: 300
A118: 농정과 | B118: 용문면 사부령길 119 | C118: 김의주 | D118: 원예특작분야 토양개량제 지원사업 | E118: 민간자본사업보조 | F118: 900천원 * 1식 * 50% | G118: 0 | H118: 900 | I118: 450 | J118: 450 | K118: 450 | L118: 450
A119: 농정과 | B119: 용문면 금당실길 144 | C119: 김원덕 | D119: 원예특작분야 토양개량제 지원사업 | E119: 민간자본사업보조 | F119: 3,000천원 * 1식 * 50% | G119: 0 | H119: 3,000 | I119: 1,500 | J119: 1,500 | K119: 1,500 | L119: 1,500
A120: 농정과 | B120: 용문면 금당실길 47 | C120: 김은기 | D120: 원예특작분야 토양개량제 지원사업 | E120: 민간자본사업보조 | F120: 1,800천원 * 1식 * 50% | G120: 0 | H120: 1,800 | I120: 900 | J120: 900 | K120: 900 | L120: 900
A121: 농정과 | B121: 용문면 덕신길 2-53 | C121: 김재주 | D121: 원예특작분야 토양개량제 지원사업 | E121: 민간자본사업보조 | F121: 600천원 * 1식 * 50% | G121: 0 | H121: 600 | I121: 300 | J121: 300 | K121: 300 | L121: 300
A122: 농정과 | B122: 용문면 복천길 80-8 | C122: 신대영 | D122: 원예특작분야 토양개량제 지원사업 | E122: 민간자본사업보조 | F122: 1,800천원 * 1식 * 50% | G122: 0 | H122: 1,800 | I122: 900 | J122: 900 | K122: 900 | L122: 900
A123: 농정과 | B123: 용문면 성현길 226 | C123: 이재천 | D123: 원예특작분야 토양개량제 지원사업 | E123: 민간자본사업보조 | F123: 1,500천원 * 1식 * 50% | G123: 0 | H123: 1,500 | I123: 750 | J123: 750 | K123: 750 | L123: 750
A124: 농정과 | B124: 용문면 덕신길 184 | C124: 임창길 | D124: 원예특작분야 토양개량제 지원사업 | E124: 민간자본사업보조 | F124: 1,200천원 * 1식 * 50% | G124: 0 | H124: 1,200 | I124: 600 | J124: 600 | K124: 600 | L124: 600
A125: 농정과 | B125: 용문면 큰맛질길 50-43 | C125: 권두섭 | D125: 원예특작분야 토양개량제 지원사업 | E125: 민간자본사업보조 | F125: 200천원 * 1식 * 50% | G125: 0 | H125: 200 | I125: 100 | J125: 100 | K125: 100 | L125: 100
A126: 농정과 | B126: 용문면 양갓길 6 | C126: 권재완 | D126: 원예특작분야 토양개량제 지원사업 | E126: 민간자본사업보조 | F126: 4,500천원 * 1식 * 50% | G126: 0 | H126: 4,500 | I126: 2,250 | J126: 2,250 | K126: 2,250 | L126: 2,250
A127: 농정과 | B127: 용문면 큰맛질길 42-6 | C127: 박문수 | D127: 원예특작분야 토양개량제 지원사업 | E127: 민간자본사업보조 | F127: 4,500천원 * 1식 * 50% | G127: 0 | H127: 4,500 | I127: 2,250 | J127: 2,250 | K127: 2,250 | L127: 2,250
A128: 농정과 | B128: 용문면 큰맛질길 79-2 | C128: 박영환 | D128: 원예특작분야 토양개량제 지원사업 | E128: 민간자본사업보조 | F128: 4,500천원 * 1식 * 50% | G128: 0 | H128: 4,500 | I128: 2,250 | J128: 2,250 | K128: 2,250 | L128: 2,250
A129: 농정과 | B129: 용문면 반서울로 379-6 | C129: 위용복 | D129: 원예특작분야 토양개량제 지원사업 | E129: 민간자본사업보조 | F129: 9,000천원 * 1식 * 50% | G129: 0 | H129: 9,000 | I129: 4,500 | J129: 4,500 | K129: 4,500 | L129: 4,500
A130: 농정과 | B130: 효자면 진사길 23 | C130: 김병구 | D130: 원예특작분야 토양개량제 지원사업 | E130: 민간자본사업보조 | F130: 850천원 * 1식 * 50% | G130: 0 | H130: 850 | I130: 425 | J130: 425 | K130: 425 | L130: 425
A131: 농정과 | B131: 효자면 도효자로 1784-10 | C131: 김성호 | D131: 원예특작분야 토양개량제 지원사업 | E131: 민간자본사업보조 | F131: 1,050천원 * 1식 * 50% | G131: 0 | H131: 1,050 | I131: 525 | J131: 525 | K131: 525 | L131: 525
A132: 농정과 | B132: 효자면 독죽마을길 107-26 | C132: 김영주 | D132: 원예특작분야 토양개량제 지원사업 | E132: 민간자본사업보조 | F132: 850천원 * 1식 * 50% | G132: 0 | H132: 850 | I132: 425 | J132: 425 | K132: 425 | L132: 425
A133: 농정과 | B133: 용문면 성현길 152 | C133: 김정순 | D133: 원예특작분야 토양개량제 지원사업 | E133: 민간자본사업보조 | F133: 600천원 * 1식 * 50% | G133: 0 | H133: 600 | I133: 300 | J133: 300 | K133: 300 | L133: 300
A134: 농정과 | B134: 감천면 수한길 109-60 | C134: 정우영 | D134: 원예특작분야 토양개량제 지원사업 | E134: 민간자본사업보조 | F134: 1,400천원 * 1식 * 50% | G134: 0 | H134: 1,400 | I134: 700 | J134: 700 | K134: 700 | L134: 700
A135: 농정과 | B135: 효자면 독죽마을길 60-18 | C135: 조경신 | D135: 원예특작분야 토양개량제 지원사업 | E135: 민간자본사업보조 | F135: 1,600천원 * 1식 * 50% | G135: 0 | H135: 1,600 | I135: 800 | J135: 800 | K135: 800 | L135: 800
A136: 농정과 | B136: 용문면 성현길 117-50 | C136: 한동영 | D136: 원예특작분야 토양개량제 지원사업 | E136: 민간자본사업보조 | F136: 2,000천원 * 1식 * 50% | G136: 0 | H136: 2,000 | I136: 1,000 | J136: 1,000 | K136: 1,000 | L136: 1,000
A137: 농정과 | B137: 감천면 수한길 31 | C137: 김명덕 | D137: 원예특작분야 토양개량제 지원사업 | E137: 민간자본사업보조 | F137: 1,700천원 * 1식 * 50% | G137: 0 | H137: 1,700 | I137: 850 | J137: 850 | K137: 850 | L137: 850
A138: 농정과 | B138: 효자면 진사길 23 | C138: 김병구 | D138: 원예특작분야 토양개량제 지원사업 | E138: 민간자본사업보조 | F138: 1,700천원 * 1식 * 50% | G138: 0 | H138: 1,700 | I138: 850 | J138: 850 | K138: 850 | L138: 850
A139: 농정과 | B139: 효자면 독죽마을길 107-26 | C139: 김영주 | D139: 원예특작분야 토양개량제 지원사업 | E139: 민간자본사업보조 | F139: 850천원 * 1식 * 50% | G139: 0 | H139: 850 | I139: 425 | J139: 425 | K139: 425 | L139: 425
A140: 농정과 | B140: 효자면 도촌길 17-19 | C140: 박재환 | D140: 원예특작분야 토양개량제 지원사업 | E140: 민간자본사업보조 | F140: 1,275천원 * 1식 * 50% | G140: 0 | H140: 1,275 | I140: 638 | J140: 638 | K140: 638 | L140: 638
A141: 농정과 | B141: 효자면 하사곡길 17 | C141: 윤철석 | D141: 원예특작분야 토양개량제 지원사업 | E141: 민간자본사업보조 | F141: 1,700천원 * 1식 * 50% | G141: 0 | H141: 1,700 | I141: 850 | J141: 850 | K141: 850 | L141: 850
A142: 농정과 | B142: 효자면 도효자로 1490-84 | C142: 이연구 | D142: 원예특작분야 토양개량제 지원사업 | E142: 민간자본사업보조 | F142: 1,700천원 * 1식 * 50% | G142: 0 | H142: 1,700 | I142: 850 | J142: 850 | K142: 850 | L142: 850
A143: 농정과 | B143: 효자면 새별길 27-3 | C143: 전석한 | D143: 원예특작분야 토양개량제 지원사업 | E143: 민간자본사업보조 | F143: 2,550천원 * 1식 * 50% | G143: 0 | H143: 2,550 | I143: 1,275 | J143: 1,275 | K143: 1,275 | L143: 1,275
A144: 농정과 | B144: 효자면 내현길 66 | C144: 최영호 | D144: 원예특작분야 토양개량제 지원사업 | E144: 민간자본사업보조 | F144: 1,700천원 * 1식 * 50% | G144: 0 | H144: 1,700 | I144: 850 | J144: 850 | K144: 850 | L144: 850
A145: 농정과 | B145: 감천면 충효로 1251-63(포2리) | C145: 김강현 | D145: 원예특작분야 토양개량제 지원사업 | E145: 민간자본사업보조 | F145: 990천원 * 1식 * 50% | G145: 0 | H145: 990 | I145: 495 | J145: 495 | K145: 495 | L145: 495
A146: 농정과 | B146: 감천면 장산1길 34 (장산1리) | C146: 김방한 | D146: 원예특작분야 토양개량제 지원사업 | E146: 민간자본사업보조 | F146: 990천원 * 1식 * 50% | G146: 0 | H146: 990 | I146: 495 | J146: 495 | K146: 495 | L146: 495
A147: 농정과 | B147: 감천면 농바우길 34-5(포2) | C147: 김승년 | D147: 원예특작분야 토양개량제 지원사업 | E147: 민간자본사업보조 | F147: 2,000천원 * 1식 * 50% | G147: 0 | H147: 2,000 | I147: 1,000 | J147: 1,000 | K147: 1,000 | L147: 1,000
A148: 농정과 | B148: 감천면 현내2길 55(현내리) | C148: 조동섭 | D148: 원예특작분야 토양개량제 지원사업 | E148: 민간자본사업보조 | F148: 660천원 * 1식 * 50% | G148: 0 | H148: 660 | I148: 330 | J148: 330 | K148: 330 | L148: 330
A149: 농정과 | B149: 감천면 한천사길 68-107(증거리) | C149: 강성목 | D149: 원예특작분야 토양개량제 지원사업 | E149: 민간자본사업보조 | F149: 200천원 * 1식 * 50% | G149: 0 | H149: 200 | I149: 100 | J149: 100 | K149: 100 | L149: 100
A150: 농정과 | B150: 감천면 장산1길 29 (장산1리) | C150: 권오익 | D150: 원예특작분야 토양개량제 지원사업 | E150: 민간자본사업보조 | F150: 990천원 * 1식 * 50% | G150: 0 | H150: 990 | I150: 495 | J150: 495 | K150: 495 | L150: 495
A151: 농정과 | B151: 감천면 한천사길 87-4(증거리) | C151: 김웅기 | D151: 원예특작분야 토양개량제 지원사업 | E151: 민간자본사업보조 | F151: 400천원 * 1식 * 50% | G151: 0 | H151: 400 | I151: 200 | J151: 200 | K151: 200 | L151: 200
A152: 농정과 | B152: 감천면 관현2길 101(관현2) | C152: 정재원 | D152: 원예특작분야 토양개량제 지원사업 | E152: 민간자본사업보조 | F152: 840천원 * 1식 * 50% | G152: 0 | H152: 840 | I152: 420 | J152: 420 | K152: 420 | L152: 420
A153: 농정과 | B153: 감천면 중산길 27-20(증거리) | C153: 조동흠 | D153: 원예특작분야 토양개량제 지원사업 | E153: 민간자본사업보조 | F153: 120천원 * 1식 * 50% | G153: 0 | H153: 120 | I153: 60 | J153: 60 | K153: 60 | L153: 60
A154: 농정과 | B154: 감천면 한천사길 72(증거리) | C154: 조원호 | D154: 원예특작분야 토양개량제 지원사업 | E154: 민간자본사업보조 | F154: 4,000천원 * 1식 * 50% | G154: 0 | H154: 4,000 | I154: 2,000 | J154: 2,000 | K154: 2,000 | L154: 2,000
A155: 농정과 | B155: 감천면 농바우길 39(포2리) | C155: 김구일 | D155: 원예특작분야 토양개량제 지원사업 | E155: 민간자본사업보조 | F155: 4,000천원 * 1식 * 50% | G155: 0 | H155: 4,000 | I155: 2,000 | J155: 2,000 | K155: 2,000 | L155: 2,000
A156: 농정과 | B156: 감천면 농바우길 37(포2) | C156: 김세년 | D156: 원예특작분야 토양개량제 지원사업 | E156: 민간자본사업보조 | F156: 1,600천원 * 1식 * 50% | G156: 0 | H156: 1,600 | I156: 800 | J156: 800 | K156: 800 | L156: 800
A157: 농정과 | B157: 감천면 복골길 99(포2리) | C157: 박장우 | D157: 원예특작분야 토양개량제 지원사업 | E157: 민간자본사업보조 | F157: 800천원 * 1식 * 50% | G157: 0 | H157: 800 | I157: 400 | J157: 400 | K157: 400 | L157: 400
A158: 농정과 | B158: 감천면 복골길 78(포2리) | C158: 박찬영 | D158: 원예특작분야 토양개량제 지원사업 | E158: 민간자본사업보조 | F158: 800천원 * 1식 * 50% | G158: 0 | H158: 800 | I158: 400 | J158: 400 | K158: 400 | L158: 400
A159: 농정과 | B159: 감천면 석송로 210(관현2) | C159: 김익현 | D159: 원예특작분야 토양개량제 지원사업 | E159: 민간자본사업보조 | F159: 320천원 * 1식 * 50% | G159: 0 | H159: 320 | I159: 160 | J159: 160 | K159: 160 | L159: 160
A160: 농정과 | B160: 감천면 석송로 210(관현2) | C160: 김익현 | D160: 원예특작분야 토양개량제 지원사업 | E160: 민간자본사업보조 | F160: 320천원 * 1식 * 50% | G160: 0 | H160: 320 | I160: 160 | J160: 160 | K160: 160 | L160: 160
A161: 농정과 | B161: 감천면 온천길 25-20(관현1) | C161: 김준하 | D161: 원예특작분야 토양개량제 지원사업 | E161: 민간자본사업보조 | F161: 168천원 * 1식 * 50% | G161: 0 | H161: 168 | I161: 84 | J161: 84 | K161: 84 | L161: 84
A162: 농정과 | B162: 감천면 온천길 25-20(관현1) | C162: 김준하 | D162: 원예특작분야 토양개량제 지원사업 | E162: 민간자본사업보조 | F162: 80천원 * 1식 * 50% | G162: 0 | H162: 80 | I162: 40 | J162: 40 | K162: 40 | L162: 40
A163: 농정과 | B163: 감천면 온천길 25-20(관현1) | C163: 김준하 | D163: 원예특작분야 토양개량제 지원사업 | E163: 민간자본사업보조 | F163: 80천원 * 1식 * 50% | G163: 0 | H163: 80 | I163: 40 | J163: 40 | K163: 40 | L163: 40
A164: 농정과 | B164: 감천면 온천길 25-20(관현1) | C164: 김준하 | D164: 원예특작분야 토양개량제 지원사업 | E164: 민간자본사업보조 | F164: 56천원 * 1식 * 50% | G164: 0 | H164: 56 | I164: 28 | J164: 28 | K164: 28 | L164: 28
A165: 농정과 | B165: 감천면 관현1길 6(관현1) | C165: 윤경태 | D165: 원예특작분야 토양개량제 지원사업 | E165: 민간자본사업보조 | F165: 320천원 * 1식 * 50% | G165: 0 | H165: 320 | I165: 160 | J165: 160 | K165: 160 | L165: 160
A166: 농정과 | B166: 감천면 관현1길 6(관현1) | C166: 윤경태 | D166: 원예특작분야 토양개량제 지원사업 | E166: 민간자본사업보조 | F166: 160천원 * 1식 * 50% | G166: 0 | H166: 160 | I166: 80 | J166: 80 | K166: 80 | L166: 80
A167: 농정과 | B167: 감천면 관현1길 6(관현1) | C167: 윤경태 | D167: 원예특작분야 토양개량제 지원사업 | E167: 민간자본사업보조 | F167: 120천원 * 1식 * 50% | G167: 0 | H167: 120 | I167: 60 | J167: 60 | K167: 60 | L167: 60
A168: 농정과 | B168: 감천면 관현1길 15(관현1) | C168: 윤병도 | D168: 원예특작분야 토양개량제 지원사업 | E168: 민간자본사업보조 | F168: 160천원 * 1식 * 50% | G168: 0 | H168: 160 | I168: 80 | J168: 80 | K168: 80 | L168: 80
A169: 농정과 | B169: 감천면 관현1길 15(관현1) | C169: 윤병도 | D169: 원예특작분야 토양개량제 지원사업 | E169: 민간자본사업보조 | F169: 160천원 * 1식 * 50% | G169: 0 | H169: 160 | I169: 80 | J169: 80 | K169: 80 | L169: 80
A170: 농정과 | B170: 감천면 관현1길 15(관현1) | C170: 윤병도 | D170: 원예특작분야 토양개량제 지원사업 | E170: 민간자본사업보조 | F170: 120천원 * 1식 * 50% | G170: 0 | H170: 120 | I170: 60 | J170: 60 | K170: 60 | L170: 60
A171: 농정과 | B171: 감천면 관현1길 28(관현1) | C171: 이영락 | D171: 원예특작분야 토양개량제 지원사업 | E171: 민간자본사업보조 | F171: 560천원 * 1식 * 50% | G171: 0 | H171: 560 | I171: 280 | J171: 280 | K171: 280 | L171: 280
A172: 농정과 | B172: 감천면 관현1길 28(관현1) | C172: 이영락 | D172: 원예특작분야 토양개량제 지원사업 | E172: 민간자본사업보조 | F172: 480천원 * 1식 * 50% | G172: 0 | H172: 480 | I172: 240 | J172: 240 | K172: 240 | L172: 240
A173: 농정과 | B173: 감천면 관현1길 9-13(관현1) | C173: 이익동 | D173: 원예특작분야 토양개량제 지원사업 | E173: 민간자본사업보조 | F173: 160천원 * 1식 * 50% | G173: 0 | H173: 160 | I173: 80 | J173: 80 | K173: 80 | L173: 80
A174: 농정과 | B174: 감천면 관현1길 9-13(관현1) | C174: 이익동 | D174: 원예특작분야 토양개량제 지원사업 | E174: 민간자본사업보조 | F174: 160천원 * 1식 * 50% | G174: 0 | H174: 160 | I174: 80 | J174: 80 | K174: 80 | L174: 80
A175: 농정과 | B175: 감천면 관현1길 9-13(관현1) | C175: 이익동 | D175: 원예특작분야 토양개량제 지원사업 | E175: 민간자본사업보조 | F175: 120천원 * 1식 * 50% | G175: 0 | H175: 120 | I175: 60 | J175: 60 | K175: 60 | L175: 60
A176: 농정과 | B176: 감천면 석송로 210-40(관현2) | C176: 정영순 | D176: 원예특작분야 토양개량제 지원사업 | E176: 민간자본사업보조 | F176: 160천원 * 1식 * 50% | G176: 0 | H176: 160 | I176: 80 | J176: 80 | K176: 80 | L176: 80
A177: 농정과 | B177: 감천면 관현1길 9-24(관현1) | C177: 조동섭 | D177: 원예특작분야 토양개량제 지원사업 | E177: 민간자본사업보조 | F177: 504천원 * 1식 * 50% | G177: 0 | H177: 504 | I177: 252 | J177: 252 | K177: 252 | L177: 252
A178: 농정과 | B178: 감천면 관현1길 9-24(관현1) | C178: 조동섭 | D178: 원예특작분야 토양개량제 지원사업 | E178: 민간자본사업보조 | F178: 320천원 * 1식 * 50% | G178: 0 | H178: 320 | I178: 160 | J178: 160 | K178: 160 | L178: 160
A179: 농정과 | B179: 감천면 덕율4길 29-10(덕율1) | C179: 권오준 | D179: 원예특작분야 토양개량제 지원사업 | E179: 민간자본사업보조 | F179: 1,500천원 * 1식 * 50% | G179: 0 | H179: 1,500 | I179: 750 | J179: 750 | K179: 750 | L179: 750
A180: 농정과 | B180: 감천면 온천길 9(관현1) | C180: 권중기 | D180: 원예특작분야 토양개량제 지원사업 | E180: 민간자본사업보조 | F180: 160천원 * 1식 * 50% | G180: 0 | H180: 160 | I180: 80 | J180: 80 | K180: 80 | L180: 80
A181: 농정과 | B181: 감천면 온천길 9(관현1) | C181: 권중기 | D181: 원예특작분야 토양개량제 지원사업 | E181: 민간자본사업보조 | F181: 160천원 * 1식 * 50% | G181: 0 | H181: 160 | I181: 80 | J181: 80 | K181: 80 | L181: 80
A182: 농정과 | B182: 감천면 온천길 9(관현1) | C182: 권중기 | D182: 원예특작분야 토양개량제 지원사업 | E182: 민간자본사업보조 | F182: 120천원 * 1식 * 50% | G182: 0 | H182: 120 | I182: 60 | J182: 60 | K182: 60 | L182: 60
A183: 농정과 | B183: 감천면 덕율4길 100(덕율1) | C183: 김갑철 | D183: 원예특작분야 토양개량제 지원사업 | E183: 민간자본사업보조 | F183: 1,500천원 * 1식 * 50% | G183: 0 | H183: 1,500 | I183: 750 | J183: 750 | K183: 750 | L183: 750
A184: 농정과 | B184: 감천면 석송로 229 (천향1) | C184: 김규하 | D184: 원예특작분야 토양개량제 지원사업 | E184: 민간자본사업보조 | F184: 600천원 * 1식 * 50% | G184: 0 | H184: 600 | I184: 300 | J184: 300 | K184: 300 | L184: 300
A185: 농정과 | B185: 감천면 덕율1길 22 (덕율1) | C185: 김점규 | D185: 원예특작분야 토양개량제 지원사업 | E185: 민간자본사업보조 | F185: 1,500천원 * 1식 * 50% | G185: 0 | H185: 1,500 | I185: 750 | J185: 750 | K185: 750 | L185: 750
A186: 농정과 | B186: 감천면 관현1길 9-6(관현1) | C186: 김주석 | D186: 원예특작분야 토양개량제 지원사업 | E186: 민간자본사업보조 | F186: 200천원 * 1식 * 50% | G186: 0 | H186: 200 | I186: 100 | J186: 100 | K186: 100 | L186: 100
A187: 농정과 | B187: 감천면 관현1길 9-6(관현1) | C187: 김주석 | D187: 원예특작분야 토양개량제 지원사업 | E187: 민간자본사업보조 | F187: 200천원 * 1식 * 50% | G187: 0 | H187: 200 | I187: 100 | J187: 100 | K187: 100 | L187: 100
A188: 농정과 | B188: 감천면 관현1길 9-6(관현1) | C188: 김주석 | D188: 원예특작분야 토양개량제 지원사업 | E188: 민간자본사업보조 | F188: 120천원 * 1식 * 50% | G188: 0 | H188: 120 | I188: 60 | J188: 60 | K188: 60 | L188: 60
A189: 농정과 | B189: 감천면 관현1길 9-6(관현1) | C189: 김주석 | D189: 원예특작분야 토양개량제 지원사업 | E189: 민간자본사업보조 | F189: 420천원 * 1식 * 50% | G189: 0 | H189: 420 | I189: 210 | J189: 210 | K189: 210 | L189: 210
A190: 농정과 | B190: 감천면 수용골길 119-37 (덕율1) | C190: 김주철 | D190: 원예특작분야 토양개량제 지원사업 | E190: 민간자본사업보조 | F190: 1,500천원 * 1식 * 50% | G190: 0 | H190: 1,500 | I190: 750 | J190: 750 | K190: 750 | L190: 750
A191: 농정과 | B191: 감천면 관현1길 16(관현1) | C191: 박춘식 | D191: 원예특작분야 토양개량제 지원사업 | E191: 민간자본사업보조 | F191: 320천원 * 1식 * 50% | G191: 0 | H191: 320 | I191: 160 | J191: 160 | K191: 160 | L191: 160
A192: 농정과 | B192: 감천면 관현1길 16(관현1) | C192: 박춘식 | D192: 원예특작분야 토양개량제 지원사업 | E192: 민간자본사업보조 | F192: 240천원 * 1식 * 50% | G192: 0 | H192: 240 | I192: 120 | J192: 120 | K192: 120 | L192: 120
A193: 농정과 | B193: 감천면 소백로 131-58(현내리) | C193: 성종선 | D193: 원예특작분야 토양개량제 지원사업 | E193: 민간자본사업보조 | F193: 320천원 * 1식 * 50% | G193: 0 | H193: 320 | I193: 160 | J193: 160 | K193: 160 | L193: 160
A194: 농정과 | B194: 감천면 소백로 131-58(현내리) | C194: 성종선 | D194: 원예특작분야 토양개량제 지원사업 | E194: 민간자본사업보조 | F194: 300천원 * 1식 * 50% | G194: 0 | H194: 300 | I194: 150 | J194: 150 | K194: 150 | L194: 150
A195: 농정과 | B195: 감천면 소백로 131-58(현내리) | C195: 성종선 | D195: 원예특작분야 토양개량제 지원사업 | E195: 민간자본사업보조 | F195: 180천원 * 1식 * 50% | G195: 0 | H195: 180 | I195: 90 | J195: 90 | K195: 90 | L195: 90
A196: 농정과 | B196: 감천면 덕율1길 24(덕율1) | C196: 임상호 | D196: 원예특작분야 토양개량제 지원사업 | E196: 민간자본사업보조 | F196: 300천원 * 1식 * 50% | G196: 0 | H196: 300 | I196: 150 | J196: 150 | K196: 150 | L196: 150
A197: 농정과 | B197: 감천면 자봉길 46-1 (진평2) | C197: 진근식 | D197: 원예특작분야 토양개량제 지원사업 | E197: 민간자본사업보조 | F197: 750천원 * 1식 * 50% | G197: 0 | H197: 750 | I197: 375 | J197: 375 | K197: 375 | L197: 375
A198: 농정과 | B198: 감천면 충효로 1251-47 (포2) | C198: 최종수 | D198: 원예특작분야 토양개량제 지원사업 | E198: 민간자본사업보조 | F198: 560천원 * 1식 * 50% | G198: 0 | H198: 560 | I198: 280 | J198: 280 | K198: 280 | L198: 280
A199: 농정과 | B199: 감천면 수락대로 558 (덕율2) | C199: 황윤석 | D199: 원예특작분야 토양개량제 지원사업 | E199: 민간자본사업보조 | F199: 750천원 * 1식 * 50% | G199: 0 | H199: 750 | I199: 375 | J199: 375 | K199: 375 | L199: 375
A200: 농정과 | B200: 감천면 도평길 48(진평1) | C200: 김홍년 | D200: 원예특작분야 토양개량제 지원사업 | E200: 민간자본사업보조 | F200: 300천원 * 1식 * 50% | G200: 0 | H200: 300 | I200: 150 | J200: 150 | K200: 150 | L200: 150
... 1112 more rows
